bitfinex-derivatives/quotes_BNBF0:USTF0_20250413
["timestamp","ask_amount","ask_price","bid_price","bid_amount"]
[1744513021083,0.29246401,595.75,594.59,0.33636623]
[1744513021288,0.30886446,595.74,594.59,0.33636623]
[1744513022988,0.30886446,595.73,594.59,0.33636623]
[1744513023188,0.30886446,595.76,594.59,0.33636623]
[1744513023384,0.30886446,595.75,594.59,0.33636623]
[1744513023690,0.30886446,595.74,594.59,0.33636623]
[1744513023888,0.30886446,595.76,594.59,0.33636623]
[1744513024189,0.29246401,595.73,594.59,0.33636623]
[1744513024690,0.3088658,595.72,594.59,0.33636623]
[1744513024883,0.3088658,595.72,594.6,0.736]
[1744513025083,0.3088658,595.72,594.61,0.33635492]
[1744513025989,0.3088658,595.71,594.61,0.33635492]
[1744513026189,0.29246155,595.71,594.61,0.33635492]
[1744513026390,0.3088658,595.7,594.61,0.33635492]
[1744513027688,0.29246155,595.71,594.61,0.33635492]
[1744513027892,0.30886744,595.7,594.61,0.33635492]
[1744513029095,0.29246893,595.69,594.61,0.33635492]
[1744513029394,0.30886607,595.68,594.61,0.33635492]
[1744513032096,0.29247138,595.67,594.61,0.33635492]
[1744513032592,0.30886793,595.66,594.61,0.33635492]
[1744513034700,0.30886793,595.66,594.62,0.94979235]
[1744513034899,0.30886793,595.65,594.63,0.63313595]
[1744513035201,0.30886793,595.64,594.64,0.29679235]
[1744513035401,0.30886793,595.64,594.65,0.33633229]
[1744513036598,0.30886793,595.64,594.65,1.09733229]
[1744513037401,0.3088496,595.63,594.65,1.09733229]
[1744513037601,0.3088496,595.62,594.65,1.09733229]
[1744513037901,0.3088496,595.61,594.65,1.09733229]
[1744513038202,0.3088496,595.76,594.65,1.09733229]
[1744513038502,0.3088496,595.75,594.65,1.09733229]
[1744513038809,0.3088496,595.74,594.65,1.09733229]
[1744513039104,0.3088496,595.73,594.65,1.09733229]
[1744513040506,0.29244803,595.74,594.65,1.09733229]
[1744513040706,0.30886102,595.73,594.65,1.09733229]
[1744513041006,0.30886102,595.72,594.65,1.09733229]
[1744513041306,0.30886102,595.71,594.65,1.09733229]
[1744513041506,0.30886102,595.76,594.65,1.09733229]
[1744513042001,0.29245541,595.75,594.65,1.09733229]
[1744513042206,0.30886102,595.74,594.65,1.09733229]
[1744513043707,0.33570001,595.77,594.65,1.09733229]
[1744513043903,0.30886824,595.76,594.65,1.09733229]
[1744513044102,0.29245786,595.73,594.65,1.09733229]
[1744513044307,0.30886824,595.72,594.65,1.09733229]
[1744513045207,0.30886824,595.72,594.65,1.65533229]
[1744513046905,0.33570001,595.77,594.65,1.65533229]
[1744513047102,0.30886204,595.76,594.65,1.65533229]
[1744513047506,0.30886204,595.76,594.65,2.08533229]
[1744513048109,0.29245541,595.75,594.65,2.08533229]
[1744513048309,0.30886204,595.74,594.65,2.08533229]
[1744513049911,0.30886204,595.76,594.65,2.08533229]
[1744513050108,0.30886418,595.75,594.65,2.08533229]
[1744513050312,0.30886418,595.76,594.65,2.08533229]
[1744513050512,0.30886418,595.75,594.65,2.08533229]
[1744513050712,0.30886418,595.76,594.65,2.60533229]
[1744513050911,0.30886418,595.76,594.65,3.26833229]
[1744513051209,0.29245541,595.74,594.65,3.26833229]
[1744513051411,0.30886418,595.73,594.65,3.26833229]
[1744513053012,0.30886418,595.76,594.65,3.26833229]
[1744513053214,1.27338355,595.73,594.65,3.26833229]
[1744513053411,0.30886418,595.72,594.65,3.26833229]
[1744513054115,0.29246032,595.71,594.65,3.26833229]
[1744513054413,0.30886418,595.7,594.65,3.26833229]
[1744513054914,0.29246032,595.71,594.65,3.26833229]
[1744513055115,0.30886828,595.7,594.65,3.26833229]
[1744513056114,0.60133106,595.69,594.65,3.26833229]
[1744513056310,0.30886828,595.68,594.65,3.26833229]
[1744513059016,0.30886828,595.76,594.65,3.26833229]
[1744513059214,0.29246524,595.67,594.65,3.26833229]
[1744513059417,0.30886828,595.66,594.65,3.26833229]
[1744513059615,0.30886828,595.65,594.65,3.26833229]
[1744513059815,0.30886828,595.64,594.65,3.26833229]
[1744513060018,0.30886828,595.76,594.65,3.26833229]
[1744513060219,0.33570001,595.77,594.65,3.26833229]
[1744513060220,0.30886828,595.75,594.65,3.26833229]
[1744513060414,0.30886828,595.76,594.65,3.26833229]
[1744513060714,0.29245541,595.74,594.65,3.26833229]
[1744513060920,0.30886828,595.73,594.65,3.26833229]
[1744513061716,0.30886828,595.72,594.65,3.26833229]
[1744513061922,0.30886828,595.73,594.65,3.26833229]
[1744513062124,0.60132737,595.72,594.65,3.26833229]
[1744513062421,0.30886828,595.71,594.65,3.26833229]
[1744513062922,0.29245909,595.72,594.65,3.26833229]
[1744513063125,0.30886887,595.71,594.65,3.26833229]
[1744513064924,0.30886887,595.72,594.65,3.26833229]
[1744513065125,0.29246032,595.7,594.65,3.26833229]
[1744513065325,0.30886887,595.69,594.65,3.26833229]
[1744513066126,0.29246032,595.7,594.65,3.26833229]
[1744513066326,0.30887443,595.69,594.65,3.26833229]
[1744513066830,0.30887443,595.69,594.65,3.70933229]
[1744513067928,0.30887443,595.68,594.65,3.70933229]
[1744513068129,0.29246401,595.68,594.65,3.70933229]
[1744513068429,0.30887443,595.67,594.65,3.70933229]
[1744513069330,0.29246401,595.68,594.65,3.70933229]
[1744513069524,0.30887618,595.67,594.65,3.70933229]
[1744513070932,0.29246401,595.68,594.65,3.70933229]
[1744513071128,0.30887312,595.67,594.65,3.70933229]
[1744513071924,0.29246401,595.68,594.65,3.70933229]
[1744513072134,0.30887251,595.67,594.65,3.70933229]
[1744513074034,0.30887251,595.71,594.65,3.70933229]
[1744513074233,0.29247384,595.66,594.65,3.70933229]
[1744513074428,0.30889184,595.65,594.65,3.70933229]
[1744513077034,0.30889184,595.76,594.65,3.70933229]
[1744513078030,0.29246278,595.75,594.65,3.70933229]
[1744513078237,0.30889184,595.74,594.65,3.70933229]
[1744513079136,0.29246278,595.75,594.65,3.70933229]
[1744513079435,0.30887516,595.74,594.65,3.70933229]
[1744513080138,0.29246524,595.73,594.65,3.70933229]
[1744513080538,0.30887516,595.72,594.65,3.70933229]
[1744513080837,0.30887196,595.71,594.65,3.70933229]
[1744513081033,0.30887196,595.72,594.65,3.70933229]
[1744513081839,0.29246524,595.73,594.65,3.70933229]
[1744513082138,0.30887175,595.72,594.65,3.70933229]
[1744513082939,0.30887175,595.76,594.65,3.70933229]
[1744513083142,0.29246524,595.71,594.65,3.70933229]
[1744513083440,0.30887175,595.7,594.65,3.70933229]
[1744513085240,0.30887521,595.69,594.65,3.70933229]
[1744513085434,0.30887521,595.7,594.65,3.70933229]
[1744513086141,0.30887521,595.74,594.65,3.70933229]
[1744513086342,0.30887521,595.73,594.65,3.70933229]
[1744513086642,0.30887521,595.72,594.65,3.70933229]
[1744513086841,0.30887521,595.74,594.65,3.70933229]
[1744513087142,0.29246278,595.71,594.65,3.70933229]
[1744513087342,0.30887521,595.7,594.65,3.70933229]
[1744513088344,0.29246278,595.71,594.65,3.70933229]
[1744513088644,0.30886857,595.7,594.65,3.70933229]
[1744513089043,0.2924677,595.69,594.65,3.70933229]
[1744513089543,0.30886857,595.68,594.65,3.70933229]
[1744513092749,1.27338355,595.67,594.65,3.70933229]
[1744513092946,0.30886857,595.66,594.65,3.70933229]
[1744513094746,1.27338355,595.67,594.65,3.70933229]
[1744513094946,0.30883554,595.66,594.65,3.70933229]
[1744513096247,0.30883554,595.68,594.65,3.70933229]
[1744513096444,0.30883554,595.67,594.65,3.70933229]
[1744513096642,0.30883554,595.68,594.65,3.70933229]
[1744513097946,0.30883554,595.76,594.65,3.70933229]
[1744513098148,0.29244803,595.67,594.65,3.70933229]
[1744513098352,0.30883216,595.66,594.65,3.70933229]
[1744513098551,0.30883216,595.65,594.65,3.70933229]
[1744513098749,0.30883216,595.76,594.65,3.70933229]
[1744513098950,0.30883216,595.75,594.65,3.70933229]
[1744513099146,0.30883216,595.74,594.65,3.70933229]
[1744513099549,0.2924382,595.75,594.65,3.70933229]
[1744513099747,0.30882998,595.74,594.65,3.70933229]
[1744513101254,0.2924382,595.75,594.65,3.70933229]
[1744513101448,0.30881797,595.74,594.65,3.70933229]
[1744513107054,0.6012488,595.73,594.65,3.70933229]
[1744513107250,0.30881797,595.72,594.65,3.70933229]
[1744513109158,0.29243083,595.73,594.65,3.70933229]
[1744513109356,0.3088188,595.71,594.65,3.70933229]
[1744513109559,0.3088188,595.7,594.65,3.70933229]
[1744513109762,0.3088188,595.72,594.65,3.70933229]
[1744513110058,0.29243329,595.69,594.65,3.70933229]
[1744513110258,0.3088188,595.68,594.65,3.70933229]
[1744513110753,0.29243329,595.69,594.65,3.70933229]
[1744513110960,0.30883875,595.68,594.65,3.70933229]
[1744513112958,0.30883875,595.76,594.65,3.70933229]
[1744513113160,0.29244803,595.67,594.65,3.70933229]
[1744513113360,0.30883875,595.66,594.65,3.70933229]
[1744513113563,0.30883875,595.76,594.65,3.70933229]
[1744513113762,0.30883875,595.65,594.65,3.70933229]
[1744513113963,0.33570001,595.77,594.65,3.70933229]
[1744513114264,0.2924382,595.75,594.65,3.70933229]
[1744513114464,0.30883168,595.74,594.65,3.70933229]
[1744513115962,0.30883168,595.76,594.65,3.70933229]
[1744513116162,0.29244066,595.73,594.65,3.70933229]
[1744513116361,0.30883168,595.72,594.65,3.70933229]
[1744513117062,0.29244066,595.73,594.65,3.70933229]
[1744513117262,0.30883751,595.72,594.65,3.70933229]
[1744513118662,0.29244066,595.73,594.65,3.70933229]
[1744513118863,0.30883554,595.72,594.65,3.70933229]
[1744513119063,0.30883554,595.76,594.65,3.70933229]
[1744513119263,0.2924382,595.71,594.65,3.70933229]
[1744513119465,0.30883554,595.7,594.65,3.70933229]
[1744513120665,0.2924382,595.71,594.65,3.70933229]
[1744513121764,0.33570001,595.77,594.65,3.70933229]
[1744513122063,0.30878451,595.76,594.65,3.70933229]
[1744513123165,0.292421,595.75,594.65,3.70933229]
[1744513124064,0.30879467,595.74,594.65,3.70933229]
[1744513124258,0.292421,595.75,594.65,3.70933229]
[1744513124664,0.30879199,595.74,594.65,3.70933229]
[1744513127865,0.292421,595.75,594.65,3.70933229]
[1744513130762,1.27338355,596.25,594.65,3.70933229]
[1744513130967,0.64418215,596.24,594.65,3.70933229]
[1744513131266,0.64418778,596.23,594.65,3.70933229]
[1744513131459,0.33544664,596.22,594.65,3.70933229]
[1744513131660,0.30874676,596.21,594.65,3.70933229]
[1744513131867,0.3354579,596.2,594.65,3.70933229]
[1744513132067,0.30874676,596.19,594.65,3.70933229]
[1744513132265,0.33546915,596.18,594.65,3.70933229]
[1744513132463,0.30874676,596.17,594.65,3.70933229]
[1744513132767,0.3354804,596.16,594.65,3.70933229]
[1744513132966,0.30874676,596.15,594.65,3.70933229]
[1744513133162,0.33549166,596.14,594.65,3.70933229]
[1744513133366,0.30874676,596.13,594.66,0.29656447]
[1744513133863,0.30874676,596.13,594.65,0.33633229]
[1744513134662,0.33549166,596.14,594.65,0.33633229]
[1744513134868,0.30872473,596.13,594.65,0.33633229]
[1744513136162,0.33549166,596.14,594.65,0.33633229]
[1744513136465,0.30872376,596.13,594.65,0.82333229]
[1744513136662,0.30872376,596.13,594.66,0.29648708]
[1744513137067,0.30872376,596.13,594.66,1.02048708]
[1744513137267,0.30872376,596.13,594.67,0.29648708]
[1744513137665,0.30872376,596.13,594.67,0.77248708]
[1744513137861,0.30872376,596.13,594.68,0.29648708]
[1744513138062,0.30872376,596.13,594.69,0.33630967]
[1744513140166,0.29231906,596.12,594.69,0.33630967]
[1744513140362,0.30872376,596.11,594.69,0.33630967]
[1744513140767,0.29231906,596.12,594.69,0.33630967]
[1744513141068,0.30870236,596.11,594.69,0.33630967]
[1744513141663,0.30870236,596.11,594.7,0.29648558]
[1744513141867,0.30870236,596.11,594.72,0.3362927]
[1744513142065,0.30870236,596.11,594.73,0.29648558]
[1744513142266,0.30870236,596.11,594.75,0.33627574]
[1744513142462,0.30870236,596.11,594.76,0.29648558]
[1744513142668,0.30870236,596.11,594.78,0.33625878]
[1744513143062,0.30870236,596.13,594.78,0.33625878]
[1744513143266,0.30870236,596.12,594.78,0.33625878]
[1744513143468,0.30870236,596.13,594.78,0.33625878]
[1744513143666,0.30870236,596.11,594.78,0.33625878]
[1744513143966,0.30870236,596.1,594.78,0.33625878]
[1744513144266,0.30870236,596.09,594.79,0.29658087]
[1744513144466,0.30870236,596.09,594.81,0.33624182]
[1744513145970,0.30870236,596.13,594.81,0.33624182]
[1744513146162,0.30870236,596.12,594.81,0.33624182]
[1744513146367,0.30870236,596.13,594.81,0.33624182]
[1744513146568,0.30870236,596.12,594.81,0.33624182]
[1744513146865,0.30870236,596.11,594.81,0.33624182]
[1744513147170,0.30870236,596.1,594.81,0.33624182]
[1744513148264,0.29234608,596.11,594.81,0.33624182]
[1744513148467,0.30875975,596.1,594.81,0.33624182]
[1744513148668,0.30875975,596.09,594.81,0.33624182]
[1744513148866,0.30875975,596.08,594.81,0.33624182]
[1744513149065,0.30875975,596.07,594.81,0.33624182]
[1744513149270,0.30875975,596.06,594.81,0.33624182]
[1744513149570,0.30875975,596.05,594.81,0.33624182]
[1744513149769,0.30875975,596.04,594.81,0.33624182]
[1744513149970,0.30877203,596.03,594.81,0.33624182]
[1744513150174,0.30877203,596.02,594.81,0.33624182]
[1744513150472,0.30877203,596.01,594.81,0.33624182]
[1744513150673,0.30877203,596.0,594.81,0.33624182]
[1744513150866,0.30877203,595.99,594.81,0.33624182]
[1744513151068,0.30877203,596.03,594.81,0.33624182]
[1744513151268,0.30877203,596.02,594.81,0.33624182]
[1744513151569,0.30876602,596.01,594.81,0.33624182]
[1744513151774,0.30876602,596.03,594.81,0.33624182]
[1744513152073,0.30876602,596.02,594.81,0.33624182]
[1744513152274,0.30876602,596.01,594.81,0.33624182]
[1744513152474,0.30876602,596.0,594.81,0.33624182]
[1744513152674,0.30876602,595.99,594.81,0.33624182]
[1744513152874,0.30876602,595.98,594.81,0.33624182]
[1744513153080,0.30876602,595.97,594.81,0.33624182]
[1744513153275,0.30876602,595.96,594.81,0.33624182]
[1744513153577,0.30876602,595.95,594.81,0.33624182]
[1744513153781,0.30876602,595.97,594.81,0.33624182]
[1744513154076,0.30876602,595.96,594.81,0.33624182]
[1744513154277,0.30876602,595.95,594.81,0.33624182]
[1744513154477,0.29235713,595.98,594.81,0.92124182]
[1744513154775,0.30877008,595.97,594.81,0.92124182]
[1744513154977,0.30877008,595.96,594.81,0.92124182]
[1744513155171,0.30877008,595.95,594.81,0.92124182]
[1744513155476,0.30877008,595.94,594.81,0.92124182]
[1744513155678,0.30877008,595.93,594.81,0.92124182]
[1744513155978,0.30877008,595.92,594.81,0.92124182]
[1744513156177,0.30877008,595.91,594.81,0.92124182]
[1744513156378,0.30877008,595.9,594.81,0.92124182]
[1744513156576,0.30877008,595.89,594.81,0.92124182]
[1744513156776,0.30877008,595.91,594.81,0.92124182]
[1744513156977,0.30877008,595.9,594.81,0.92124182]
[1744513157273,0.30877008,595.89,594.81,0.92124182]
[1744513157477,0.30877008,595.88,594.81,0.92124182]
[1744513157672,0.30877008,595.87,594.81,0.92124182]
[1744513157872,0.29236204,595.92,594.81,1.44924182]
[1744513158078,0.30878468,595.91,594.81,1.44924182]
[1744513158378,0.30878468,595.9,594.81,1.44924182]
[1744513158577,0.30878468,595.89,594.81,1.44924182]
[1744513158771,0.30878468,595.88,594.81,1.44924182]
[1744513158973,0.30878468,595.87,594.81,1.44924182]
[1744513159176,0.30878559,595.86,594.81,1.44924182]
[1744513159385,0.30878559,595.91,594.81,1.44924182]
[1744513159579,0.30878559,595.9,594.81,1.44924182]
[1744513159779,0.29236204,595.92,594.81,1.44924182]
[1744513159980,0.30879618,595.91,594.81,1.44924182]
[1744513160175,0.30879618,595.9,594.81,1.44924182]
[1744513160378,0.30879618,595.89,594.81,1.44924182]
[1744513160574,0.30879618,595.91,594.81,1.44924182]
[1744513160979,0.2923952,595.9,594.81,1.44924182]
[1744513161179,0.30879618,595.89,594.81,1.44924182]
[1744513161680,0.30879618,595.89,594.81,2.09124182]
[1744513163079,0.30879618,595.89,594.81,2.87724182]
[1744513164085,0.2923952,595.9,594.81,2.87724182]
[1744513164279,0.30881046,595.88,594.81,2.87724182]
[1744513164479,0.30881046,595.87,594.81,2.87724182]
[1744513164683,0.30881046,595.89,594.81,2.87724182]
[1744513165685,0.2923952,595.9,594.81,2.87724182]
[1744513165881,0.30881124,595.89,594.81,2.87724182]
[1744513167286,0.30881124,596.1,594.81,2.87724182]
[1744513167584,0.30881124,596.09,594.81,2.87724182]
[1744513167785,0.30881124,596.08,594.81,2.87724182]
[1744513167987,0.6443423,596.07,594.81,2.87724182]
[1744513168193,0.64434793,596.06,594.81,2.87724182]
[1744513168386,0.64435356,596.05,594.81,2.87724182]
[1744513168586,0.64435918,596.04,594.81,2.87724182]
[1744513168781,0.64436481,596.03,594.81,2.87724182]
[1744513168982,0.64437044,596.02,594.81,2.87724182]
[1744513169287,0.64437607,596.01,594.81,2.87724182]
[1744513169490,0.6443817,596.0,594.81,2.87724182]
[1744513169784,0.64438734,595.99,594.81,2.87724182]
[1744513169985,0.64439297,595.98,594.81,2.87724182]
[1744513170189,0.30881124,595.97,594.81,2.87724182]
[1744513170488,0.30880864,595.96,594.81,2.87724182]
[1744513170688,0.33558173,595.98,594.81,2.87724182]
[1744513170689,0.30880864,595.95,594.81,2.87724182]
[1744513170889,0.30880864,595.94,594.81,2.87724182]
[1744513171092,0.30880864,595.93,594.81,2.87724182]
[1744513171390,0.30880864,595.92,594.81,2.87724182]
[1744513171590,0.30880864,595.91,594.81,2.87724182]
[1744513171884,0.33558173,595.98,594.81,2.87724182]
[1744513172089,0.30881229,595.97,594.81,2.87724182]
[1744513172291,0.33559299,595.96,594.81,2.87724182]
[1744513172491,0.30881229,595.95,594.81,2.87724182]
[1744513172690,0.33560425,595.94,594.81,2.87724182]
[1744513172890,0.30881229,595.93,594.81,2.87724182]
[1744513173094,0.33561551,595.92,594.81,2.87724182]
[1744513173284,0.30881229,595.91,594.81,2.87724182]
[1744513173490,0.33562678,595.9,594.81,2.87724182]
[1744513173692,0.30881229,595.89,594.81,2.87724182]
[1744513173888,0.30881229,595.88,594.81,2.87724182]
[1744513174195,0.30881229,595.87,594.81,2.87724182]
[1744513174392,0.30881229,595.86,594.81,2.87724182]
[1744513174595,0.30881229,595.85,594.81,2.87724182]
[1744513174796,0.30881229,595.84,594.81,2.87724182]
[1744513174989,0.292421,595.89,594.81,2.87724182]
[1744513175193,0.64449365,595.88,594.81,2.87724182]
[1744513175392,0.30885561,595.87,594.81,2.87724182]
[1744513175593,0.30885561,595.86,594.81,2.87724182]
[1744513175796,0.30885561,595.85,594.81,2.87724182]
[1744513175997,0.30885561,595.84,594.81,2.87724182]
[1744513176191,0.30885561,595.83,594.81,2.87724182]
[1744513178202,0.29242469,595.84,594.81,2.87724182]
[1744513178395,0.30885489,595.83,594.81,2.87724182]
[1744513179000,0.30885489,595.87,594.81,2.87724182]
[1744513179200,0.2924296,595.82,594.81,3.60024182]
[1744513179394,0.30885489,595.81,594.81,3.60024182]
[1744513179800,0.2924296,595.82,594.81,3.60024182]
[1744513180000,0.3088544,595.81,594.81,3.60024182]
[1744513180300,0.3088544,595.8,594.81,3.60024182]
[1744513180501,0.3088544,595.79,594.81,3.60024182]
[1744513180703,0.3088544,595.81,594.81,3.60024182]
[1744513180899,0.3088544,595.8,594.81,3.60024182]
[1744513181100,0.3088544,595.79,594.81,3.60024182]
[1744513181295,0.3088544,595.81,594.81,3.60024182]
[1744513181602,0.30885471,595.8,594.81,3.60024182]
[1744513181896,0.30885471,595.79,594.81,3.60024182]
[1744513182201,0.30885471,595.81,594.81,3.60024182]
[1744513182401,0.30885471,595.78,594.81,3.60024182]
[1744513182602,0.30885471,595.77,594.81,3.60024182]
[1744513182799,0.30885471,595.81,594.81,3.60024182]
[1744513184604,0.2924296,595.82,594.81,3.60024182]
[1744513184798,0.30885208,595.81,594.81,3.60024182]
[1744513185201,0.29243206,595.8,594.81,3.60024182]
[1744513185603,0.30885208,595.79,594.81,3.60024182]
[1744513189411,0.29243206,595.8,594.81,3.60024182]
[1744513189608,0.30884852,595.79,594.81,3.60024182]
[1744513192010,0.30884852,595.78,594.81,3.60024182]
[1744513192209,0.30884852,595.77,594.81,3.60024182]
[1744513192410,0.29243206,595.8,594.81,3.60024182]
[1744513192411,0.30884852,595.76,594.81,3.60024182]
[1744513192606,0.30884852,595.75,594.81,3.60024182]
[1744513192806,0.30884852,595.74,594.81,3.60024182]
[1744513193009,0.30884852,595.79,594.81,3.60024182]
[1744513193208,0.30884852,595.73,594.81,3.60024182]
[1744513193407,0.30884852,595.72,594.81,3.60024182]
[1744513193613,0.30884852,595.79,594.81,3.60024182]
[1744513193813,0.30884852,595.78,594.81,3.60024182]
[1744513194011,0.30884852,595.77,594.81,3.60024182]
[1744513194312,0.30885688,595.76,594.81,3.60024182]
[1744513194506,0.30885688,595.75,594.81,3.60024182]
[1744513194710,0.29243329,595.77,594.81,3.60024182]
[1744513195014,0.30885656,595.76,594.81,3.60024182]
[1744513195205,0.30885656,595.75,594.81,3.60024182]
[1744513195412,0.30885656,595.74,594.81,3.60024182]
[1744513195710,0.30885656,595.73,594.81,3.60024182]
[1744513195910,0.30885656,595.72,594.81,3.60024182]
[1744513196107,0.30885656,595.76,594.81,3.60024182]
[1744513196412,0.30885656,595.75,594.81,3.60024182]
[1744513196609,0.30885656,595.74,594.81,3.60024182]
[1744513196810,0.30885656,595.73,594.81,4.16824182]
[1744513197114,0.30885656,595.72,594.81,4.16824182]
[1744513197314,0.30885656,595.71,594.81,4.16824182]
[1744513197515,0.29245295,595.73,594.81,4.16824182]
[1744513197811,0.30889496,595.72,594.81,4.16824182]
[1744513198012,0.30889496,595.71,594.81,4.16824182]
[1744513198213,0.30889496,595.7,594.81,4.16824182]
[1744513198412,0.30889496,595.72,594.81,4.16824182]
[1744513198610,0.30889496,595.71,594.81,4.16824182]
[1744513198812,0.30889496,595.7,594.81,4.16824182]
[1744513199015,0.30889496,595.72,594.81,4.16824182]
[1744513199209,0.30889496,595.71,594.81,4.16824182]
[1744513199514,0.30889496,595.7,594.81,4.16824182]
[1744513199708,0.30889496,595.69,594.81,4.16824182]
[1744513199913,0.30889496,595.72,594.81,4.16824182]
[1744513200113,0.30889496,595.71,594.81,4.16824182]
[1744513200314,0.30889496,595.7,594.81,4.16824182]
[1744513200512,0.30889496,595.73,594.81,4.16824182]
[1744513200709,0.30889496,595.72,594.81,4.16824182]
[1744513200913,0.30889496,595.71,594.81,4.16824182]
[1744513201114,0.30889496,595.7,594.81,4.16824182]
[1744513202112,0.30889496,595.7,594.81,3.832]
[1744513203017,0.30889496,595.74,594.81,3.832]
[1744513203418,1.27338355,595.75,594.81,3.832]
[1744513203618,0.30893164,595.74,594.81,3.832]
[1744513204118,0.29247261,595.73,594.81,3.832]
[1744513204314,0.30893164,595.72,594.81,3.832]
[1744513204912,0.29247261,595.73,594.81,3.832]
[1744513205113,0.30893315,595.72,594.81,3.832]
[1744513206021,0.30893315,595.87,594.81,3.832]
[1744513206220,0.29245664,595.71,594.81,3.832]
[1744513206418,0.30893315,595.7,594.81,3.832]
[1744513206616,0.30893292,595.69,594.81,3.832]
[1744513206822,0.30893292,595.68,594.81,3.832]
[1744513207022,0.33564931,595.86,594.81,3.832]
[1744513207023,0.30893292,595.85,594.81,3.832]
[1744513207227,0.29245909,595.67,594.81,3.832]
[1744513207524,0.30893292,595.66,594.81,3.832]
[1744513207820,0.30893292,595.65,594.81,3.832]
[1744513208024,0.30893292,595.64,594.81,3.832]
[1744513208225,0.30893292,595.63,594.81,3.832]
[1744513208426,0.30893292,595.83,594.81,3.832]
[1744513208620,0.64460476,595.82,594.81,3.832]
[1744513208825,0.6446104,595.81,594.81,3.832]
[1744513209124,0.64461603,595.8,594.81,3.832]
[1744513209325,0.64462166,595.79,594.81,3.832]
[1744513209525,0.6446273,595.78,594.81,3.832]
[1744513209724,0.64463293,595.77,594.81,3.832]
[1744513209921,0.64463857,595.76,594.81,3.832]
[1744513210120,0.6446442,595.75,594.81,3.832]
[1744513210418,0.30893292,595.74,594.81,3.832]
[1744513211223,0.30893292,595.73,594.81,3.832]
[1744513211420,0.30893148,595.72,594.81,3.832]
[1744513211620,0.30893148,595.71,594.81,3.832]
[1744513211827,0.30893148,595.7,594.81,3.832]
[1744513212027,0.30893148,595.69,594.81,3.832]
[1744513212228,0.30893148,595.68,594.81,3.832]
[1744513212428,0.30893148,595.67,594.81,3.832]
[1744513212727,0.30893148,595.66,594.81,3.832]
[1744513212923,0.33571128,595.75,594.81,3.832]
[1744513213126,0.29247261,595.65,594.81,3.832]
[1744513213426,0.30892862,595.64,594.81,3.832]
[1744513213621,0.30892862,595.63,594.81,3.832]
[1744513213823,0.30892862,595.62,594.81,3.832]
[1744513214024,0.30892862,595.61,594.81,3.832]
[1744513214226,0.30892862,595.6,594.81,3.832]
[1744513214530,0.30892862,595.59,594.81,3.832]
[1744513214728,0.30892862,595.69,594.81,3.832]
[1744513214929,0.29247876,595.59,594.81,3.832]
[1744513215130,0.30892862,595.58,594.81,3.832]
[1744513215326,0.30892862,595.69,594.81,3.832]
[1744513215530,0.30892862,595.68,594.81,3.832]
[1744513215732,0.30892862,595.67,594.81,3.832]
[1744513215930,1.27338355,595.71,594.81,3.832]
[1744513215931,0.30892862,595.66,594.81,3.832]
[1744513216132,0.30892862,595.65,594.81,3.832]
[1744513216331,0.30892862,595.64,594.81,3.832]
[1744513216535,0.30892862,595.63,594.81,3.832]
[1744513216726,0.30892862,595.62,594.81,3.832]
[1744513216927,0.30892862,595.61,594.81,3.832]
[1744513217132,0.30892862,595.66,594.81,3.832]
[1744513217333,0.30892862,595.65,594.81,3.832]
[1744513217529,0.30892862,595.64,594.81,3.832]
[1744513217725,0.30892474,595.63,594.81,3.832]
[1744513217932,0.30892474,595.62,594.81,3.832]
[1744513218132,0.30892474,595.61,594.81,3.832]
[1744513218327,0.30892474,595.6,594.81,3.832]
[1744513218540,0.30892474,595.66,594.81,3.832]
[1744513218738,0.30892474,595.65,594.81,3.832]
[1744513218942,0.30892474,595.64,594.81,3.832]
[1744513219239,0.29247876,595.67,594.81,3.832]
[1744513219441,0.30893208,595.63,594.81,3.832]
[1744513219636,0.30893208,595.62,594.81,3.832]
[1744513219842,0.30893208,595.61,594.81,3.832]
[1744513220037,0.30893208,595.6,594.81,3.832]
[1744513220236,0.30893208,595.66,594.81,3.832]
[1744513220438,0.30893208,595.65,594.81,3.832]
[1744513220642,0.29247876,595.67,594.81,3.832]
[1744513220643,0.30893208,595.64,594.81,3.832]
[1744513221044,0.30893208,595.63,594.81,3.832]
[1744513221243,0.30893208,595.62,594.81,3.832]
[1744513221444,0.30893208,595.61,594.81,3.832]
[1744513221745,0.30893208,595.6,594.81,3.832]
[1744513221945,0.30893208,595.66,594.81,3.832]
[1744513222140,0.29248244,595.6,594.81,3.832]
[1744513222546,0.30892363,595.59,594.81,3.832]
[1744513224043,1.27338355,595.68,594.81,3.832]
[1744513224244,0.30891959,595.67,594.81,3.832]
[1744513224445,0.30891959,595.66,594.81,3.832]
[1744513224646,0.30891959,595.65,594.81,3.832]
[1744513224942,0.30891959,595.64,594.81,3.832]
[1744513225146,0.30891959,595.63,594.81,3.832]
[1744513225346,0.30891959,595.62,594.81,3.832]
[1744513225543,0.30891959,595.63,594.81,3.832]